bitfinex/quotes_BTCUSD_20241201
["timestamp","ask_amount","ask_price","bid_price","bid_amount"]
[1733066779328,0.0037272,97304.0,97303.0,0.50866028]
[1733066782027,0.0037272,97304.0,97303.0,0.81697028]
[1733066783450,0.0037272,97304.0,97303.0,0.97697028]
[1733066783888,0.0037272,97304.0,97303.0,0.98697028]
[1733066787646,0.0037272,97304.0,97303.0,0.97697028]
[1733066788337,0.0017282,97317.0,97316.0,0.41386121]
[1733066788562,0.0017282,97317.0,97316.0,0.72213121]
[1733066789216,0.0017282,97317.0,97316.0,0.72513121]
[1733066790512,0.0027282,97317.0,97316.0,0.73113121]
[1733066792798,0.0027282,97317.0,97316.0,0.7419171]
[1733066808880,0.0466,97333.0,97323.0,0.07196928]
[1733066809334,0.0466,97333.0,97324.0,0.513749]
[1733066810002,0.0476,97333.0,97324.0,0.513749]
[1733066810259,0.001,97333.0,97331.0,0.205483]
[1733066810773,0.003,97333.0,97331.0,0.205483]
[1733066811227,0.002,97333.0,97331.0,0.205483]
[1733066811453,0.0017278,97341.0,97338.0,0.205468]
[1733066811682,0.00178728,97341.0,97338.0,0.205468]
[1733066811923,0.00178728,97341.0,97337.0,0.205471]
[1733066812413,0.00178728,97341.0,97339.0,0.250967]
[1733066812616,0.00178728,97341.0,97340.0,0.02273958]
[1733066812848,0.00178728,97341.0,97340.0,0.05481129]
[1733066813113,0.00178728,97341.0,97340.0,0.4888565]
[1733066813325,0.00178728,97341.0,97340.0,0.46611692]
[1733066813985,0.00278728,97341.0,97340.0,0.47511692]
[1733066814205,0.00278728,97341.0,97340.0,0.46611692]
[1733066814469,0.00178728,97341.0,97340.0,0.3082]
[1733066814715,0.00278728,97341.0,97340.0,0.3172]
[1733066815343,0.00378728,97341.0,97340.0,0.3242]
[1733066815791,0.00378728,97341.0,97340.0,0.3172]
[1733066815792,0.00278728,97341.0,97340.0,0.3172]
[1733066816205,0.00378728,97341.0,97340.0,0.3242]
[1733066818417,0.00378728,97341.0,97340.0,0.57764521]
[1733066822900,0.00378728,97341.0,97340.0,0.4056]
[1733066823979,0.00378728,97341.0,97340.0,0.55464521]
[1733066825073,0.00378728,97341.0,97340.0,0.73764521]
[1733066825951,0.00378728,97341.0,97340.0,0.76963936]
[1733066826620,0.00378728,97341.0,97340.0,0.74663936]
[1733066829065,0.00378728,97341.0,97340.0,1.44663936]
[1733066829742,0.00051468,97359.0,97342.0,0.01]
[1733066829956,0.00051468,97359.0,97358.0,0.205427]
[1733066829957,0.00057413,97359.0,97358.0,0.205427]
[1733066831225,0.00057413,97359.0,97358.0,0.206427]
[1733066832087,0.05027413,97359.0,97358.0,0.001]
[1733066832578,0.05209141,97359.0,97358.0,0.001]
[1733066832798,0.05209141,97359.0,97358.0,0.003]
[1733066837543,0.23013662,97359.0,97358.0,0.003]
[1733066837766,0.22831934,97359.0,97358.0,0.003]
[1733066838436,0.22831934,97359.0,97358.0,0.001]
[1733066838660,0.22831934,97359.0,97343.0,0.30819]
[1733066838661,0.0495,97358.0,97343.0,0.30819]
[1733066838907,0.17861934,97359.0,97343.0,0.30819]
[1733066838908,0.0495,97349.0,97343.0,0.30819]
[1733066839135,0.00181728,97348.0,97343.0,0.30819]
[1733066841145,0.00181728,97348.0,97343.0,0.31219]
[1733066841654,0.00181728,97348.0,97343.0,0.31619]
[1733066842981,0.0495,97349.0,97343.0,0.31619]
[1733066843215,0.0495,97349.0,97343.0,3.31619]
[1733066844132,0.048,97349.0,97343.0,3.31219]
[1733066844592,0.205431,97356.0,97343.0,3.517648]
[1733066844824,0.0027292,97362.0,97344.0,0.205456]
[1733066845060,0.00181728,97358.0,97349.0,0.205444]
[1733066846962,0.00181728,97358.0,97345.0,0.205453]
[1733066847202,0.05131728,97358.0,97349.0,0.205445]
[1733066847425,0.05131728,97358.0,97346.0,0.205452]
[1733066847655,0.05131728,97358.0,97350.0,0.205442]
[1733066847896,0.05131728,97358.0,97349.0,0.001]
[1733066848589,0.05131728,97358.0,97347.0,0.20545]
[1733066849361,0.05131728,97358.0,97349.0,0.0008632]
[1733066849575,0.05131728,97358.0,97349.0,0.0018632]
[1733066850456,0.05131728,97358.0,97350.0,0.205444]
[1733066850692,0.05131728,97358.0,97349.0,0.0018632]
[1733066850925,0.05131728,97358.0,97349.0,0.0008632]
[1733066852031,0.05131728,97358.0,97349.0,0.0018632]
[1733066853815,0.205429,97357.0,97349.0,0.0008632]
[1733066854025,0.00181728,97356.0,97349.0,0.0008632]
[1733066854703,0.205433,97355.0,97349.0,0.0008632]
[1733066854912,0.00181728,97354.0,97349.0,0.0008632]
[1733066855123,0.00181728,97354.0,97343.0,3.30819]
[1733066855319,0.00181728,97354.0,97349.0,0.001]
[1733066855527,0.00181728,97354.0,97349.0,0.002]
[1733066855947,0.20724628,97357.0,97343.0,3.30819]
[1733066856160,0.00181728,97356.0,97343.0,3.31019]
[1733066856524,0.00181728,97356.0,97344.0,0.205456]
[1733066857247,0.205433,97356.0,97343.0,3.30819]
[1733066857466,0.205435,97354.0,97343.0,3.30819]
[1733066857684,0.00181728,97353.0,97343.0,3.30819]
[1733066858127,0.1326,97351.0,97349.0,0.002]
[1733066858389,0.1326,97351.0,97343.0,3.30819]
[1733066858390,0.20726128,97350.0,97343.0,3.30819]
[1733066858625,0.20726128,97350.0,97343.0,3.30919]
[1733066858838,0.20726128,97350.0,97343.0,3.31119]
[1733066859042,0.20726128,97350.0,97343.0,3.31019]
[1733066859190,0.20726128,97350.0,97349.0,0.003]
[1733066859599,0.20726128,97350.0,97349.0,0.006]
[1733066859793,0.20726128,97350.0,97349.0,0.003]
[1733066860681,0.20726128,97350.0,97343.0,3.30819]
[1733066861132,0.20726128,97350.0,97343.0,3.3090533]
[1733066861656,0.20726128,97350.0,97343.0,3.3120533]
[1733066861863,0.00181728,97350.0,97343.0,3.3120533]
[1733066862332,0.00181728,97350.0,97343.0,3.3150533]
[1733066866794,0.05131728,97351.0,97343.0,3.3120533]
[1733066867251,0.20726128,97350.0,97343.0,3.3150533]
[1733066867489,0.00181728,97350.0,97343.0,3.3150533]
[1733066868546,0.00181728,97350.0,97343.0,3.3120533]
[1733066868774,0.05131728,97351.0,97343.0,3.3090533]
[1733066869194,0.0495,97351.0,97343.0,3.3120533]
[1733066869419,0.01118134,97355.0,97343.0,3.3090533]
[1733066869628,0.10284521,97354.0,97344.0,0.205456]
[1733066872301,0.10284521,97354.0,97344.0,0.207456]
[1733066872555,0.10284521,97354.0,97344.0,0.209456]
[1733066873406,0.10284521,97354.0,97345.0,0.205454]
[1733066874343,0.10284521,97354.0,97344.0,0.004]
[1733066874344,0.00181728,97353.0,97344.0,0.004]
[1733066875434,0.00181728,97353.0,97344.0,0.002]
[1733066875680,0.00181728,97353.0,97345.0,0.002]
[1733066875908,0.00181728,97353.0,97343.0,3.3922533]
[1733066876349,0.20544,97352.0,97345.0,0.002]
[1733066876567,0.00181728,97351.0,97345.0,0.002]
[1733066876774,0.00181728,97351.0,97344.0,0.002]
[1733066877190,0.00181728,97351.0,97345.0,0.002]
[1733066877600,0.20725428,97353.0,97345.0,0.002]
[1733066877865,0.00181728,97352.0,97345.0,0.002]
[1733066878684,0.00181728,97352.0,97343.0,3.5977113]
[1733066878930,0.00181728,97353.0,97343.0,3.5977113]
[1733066879125,0.10457181,97354.0,97345.0,0.003]
[1733066879126,0.00181728,97352.0,97345.0,0.003]
[1733066879364,0.00181728,97352.0,97343.0,3.5977113]
[1733066879365,0.00181728,97352.0,97344.0,0.003]
[1733066879565,0.205442,97351.0,97344.0,0.003]
[1733066879769,0.00181728,97350.0,97345.0,0.002]
[1733066880500,0.205455,97345.0,97343.0,3.3110533]
[1733066880730,0.10466249,97344.0,97343.0,3.3110533]
[1733066880944,0.10284521,97344.0,97343.0,3.3090533]
[1733066882666,0.10284521,97344.0,97343.0,3.3100533]
[1733066882870,0.10284521,97344.0,97343.0,3.3110533]
[1733066883288,0.10284521,97344.0,97343.0,3.3100533]
[1733066883491,0.10284521,97344.0,97343.0,3.30469078]
[1733066883717,0.10284521,97344.0,97343.0,3.30569078]
[1733066887317,0.10272816,97344.0,97343.0,3.30569078]
[1733066889278,0.11379625,97344.0,97343.0,3.30469078]
[1733066889491,0.11379625,97344.0,97343.0,3.30369078]
[1733066889904,0.11479625,97344.0,97343.0,3.30369078]
[1733066890398,0.11579625,97344.0,97343.0,3.30369078]
[1733066891796,0.11379625,97344.0,97343.0,3.30369078]
[1733066892287,0.11579625,97344.0,97343.0,3.30369078]
[1733066892523,0.16561353,97344.0,97343.0,3.30369078]
[1733066892750,0.16661353,97344.0,97343.0,3.30369078]
[1733066893214,0.16561353,97344.0,97343.0,3.30369078]
[1733066893449,0.16761353,97344.0,97343.0,3.30369078]
[1733066893678,0.16561353,97344.0,97343.0,3.30369078]
[1733066895012,0.16561353,97344.0,97343.0,3.30469078]
[1733066895225,0.16661353,97344.0,97343.0,3.30469078]
[1733066896333,0.16561353,97344.0,97343.0,3.30469078]
[1733066896764,0.16561353,97344.0,97343.0,3.30569078]
[1733066897451,0.16561353,97344.0,97343.0,3.30469078]
[1733066897921,0.15454544,97344.0,97343.0,3.30469078]
[1733066898610,0.15454544,97344.0,97343.0,3.30430506]
[1733066910814,0.15272816,97344.0,97343.0,3.30430506]
[1733066911314,0.15454544,97344.0,97343.0,3.30430506]
[1733066911545,0.27994544,97344.0,97343.0,3.30430506]
[1733066911773,0.27812816,97344.0,97343.0,3.30430506]
[1733066912020,0.27812816,97344.0,97343.0,3.30230506]
[1733066912261,0.28012816,97344.0,97343.0,3.30230506]
[1733066912482,0.28412816,97344.0,97343.0,3.30230506]
[1733066912920,0.27812816,97344.0,97343.0,3.30230506]
[1733066913372,0.28012816,97344.0,97343.0,3.30230506]
[1733066914074,0.37507627,97344.0,97343.0,3.30230506]
[1733066914984,0.28012816,97344.0,97343.0,3.30230506]
[1733066915874,0.20402816,97344.0,97343.0,3.30230506]
[1733066916545,0.20802816,97344.0,97343.0,3.30230506]
[1733066916749,0.15872816,97344.0,97343.0,3.30230506]
[1733066924384,0.15872816,97344.0,97343.0,3.30217266]
[1733066929578,0.16054544,97344.0,97343.0,3.30217266]
[1733066932388,0.16054544,97344.0,97343.0,3.30217266]
[1733066935007,0.16227284,97344.0,97343.0,3.30217266]
[1733066940637,0.20887284,97344.0,97343.0,3.30217266]
[1733066940870,0.30479542,97344.0,97343.0,3.30217266]
[1733066941089,0.30297814,97344.0,97343.0,3.30217266]
[1733066942525,0.20705556,97344.0,97343.0,3.30217266]
[1733066942760,0.20887284,97344.0,97343.0,3.30217266]
[1733066943441,0.20705556,97344.0,97343.0,3.30217266]
[1733066948726,0.16045556,97344.0,97343.0,3.30217266]
[1733066974199,0.16045556,97344.0,97343.0,3.43197266]
[1733066980233,0.0577274,97344.0,97343.0,3.43197266]
[1733066981398,0.0537274,97344.0,97343.0,3.43197266]
[1733066981616,0.0577274,97344.0,97343.0,3.43197266]
[1733066981840,0.0557274,97344.0,97343.0,3.43197266]
[1733066982056,0.0537274,97344.0,97343.0,3.43197266]
[1733066982271,0.0547274,97344.0,97343.0,3.43197266]
[1733066982486,0.0527274,97344.0,97343.0,3.43197266]
[1733066982908,0.0527274,97344.0,97343.0,3.43297266]
[1733066990695,0.15557261,97344.0,97343.0,3.43297266]
[1733066990922,0.15557261,97344.0,97343.0,3.38517266]
[1733066994464,0.15557261,97344.0,97343.0,3.30317266]
[1733066996690,0.14557261,97344.0,97343.0,3.30317266]
[1733066998007,0.14557261,97344.0,97343.0,3.35167266]
[1733066998222,0.14557261,97344.0,97343.0,3.42867266]
[1733066999458,0.14557261,97344.0,97343.0,3.38017266]
[1733067007975,0.14557261,97344.0,97343.0,3.42867266]
[1733067012913,0.0427274,97344.0,97343.0,3.42867266]
[1733067022529,0.14738989,97344.0,97343.0,3.42867266]
[1733067023016,0.14557261,97344.0,97343.0,3.42867266]
[1733067026727,0.0427274,97344.0,97343.0,3.42867266]
[1733067028773,0.0427274,97344.0,97343.0,3.53151787]
[1733067029238,0.0017266,97351.0,97343.0,3.53151787]
[1733067029239,0.0017266,97351.0,97350.0,0.333344]
[1733067033061,0.0017266,97351.0,97350.0,0.342344]
[1733067033540,0.0027266,97351.0,97350.0,0.348344]
[1733067035778,0.0027266,97351.0,97350.0,0.1429]
[1733067041436,0.0025579,97351.0,97350.0,0.1429]
[1733067041917,0.0025579,97351.0,97350.0,0.0931]
[1733067042129,0.0025579,97351.0,97350.0,0.015]
[1733067043040,0.0015579,97351.0,97350.0,0.009]
[1733067043483,0.0015579,97351.0,97350.0,0.011]
[1733067043698,0.10622039,97351.0,97350.0,0.011]
[1733067043912,0.10622039,97351.0,97350.0,0.009]
[1733067044412,0.205456,97344.0,97343.0,3.30217266]
[1733067044868,0.33130121,97344.0,97343.0,3.30217266]
[1733067047167,0.33430121,97344.0,97343.0,3.30217266]
[1733067047382,0.34524294,97344.0,97343.0,3.30217266]
[1733067047601,0.34924294,97344.0,97343.0,3.30317266]
[1733067047812,0.34224294,97344.0,97343.0,3.30217266]
[1733067048046,0.34524294,97344.0,97343.0,3.30217266]
[1733067048301,0.34924294,97344.0,97343.0,3.30317266]
[1733067049037,0.34524294,97344.0,97343.0,3.30217266]
[1733067049252,0.34924294,97344.0,97343.0,3.30317266]
[1733067049954,0.34624294,97344.0,97343.0,3.30317266]
[1733067050379,0.34924294,97344.0,97343.0,3.30317266]
[1733067050831,0.34224294,97344.0,97343.0,3.30217266]
[1733067051054,0.34924294,97344.0,97343.0,3.30217266]
[1733067051514,0.34524294,97344.0,97343.0,3.30217266]
[1733067051734,0.34924294,97344.0,97343.0,3.30317266]
[1733067062084,0.34924294,97344.0,97343.0,3.0018633]
[1733067069234,0.35924294,97344.0,97343.0,3.0018633]
[1733067069457,0.51924294,97344.0,97343.0,2.89385759]
[1733067069721,0.64864294,97344.0,97343.0,2.89385759]
[1733067069943,0.64864294,97344.0,97343.0,2.87085759]
[1733067070878,0.64564294,97344.0,97343.0,2.87085759]
[1733067071115,0.64164294,97344.0,97343.0,2.87085759]
[1733067071332,0.65064294,97344.0,97343.0,2.87085759]
[1733067071786,0.64164294,97344.0,97343.0,2.86985759]
[1733067072023,0.64964294,97344.0,97343.0,2.87085759]
[1733067072669,0.64164294,97344.0,97343.0,2.86985759]
[1733067072908,0.65064294,97344.0,97343.0,2.87085759]
[1733067073126,0.69370892,97344.0,97343.0,2.87085759]
[1733067073592,0.69370892,97344.0,97343.0,2.8112623]
[1733067073832,0.70170892,97344.0,97343.0,2.7095323]
[1733067074073,0.70170892,97344.0,97343.0,2.6205523]
[1733067074297,0.69370892,97344.0,97343.0,2.28013982]
[1733067074526,0.68470892,97344.0,97343.0,2.26719481]
[1733067074762,0.70070892,97344.0,97343.0,2.20755681]
[1733067075022,0.69170892,97344.0,97343.0,2.16546481]
[1733067075254,0.69170892,97344.0,97343.0,2.16446481]
[1733067075255,0.68470892,97344.0,97343.0,2.16446481]
[1733067075471,0.69176719,97344.0,97343.0,2.16646481]
[1733067075690,0.68276719,97344.0,97343.0,2.16546481]
[1733067076145,0.69176719,97344.0,97343.0,2.05913353]
[1733067076619,0.69176719,97344.0,97343.0,2.03858753]
[1733067076868,0.69176719,97344.0,97343.0,2.01804153]
[1733067077380,0.68276719,97344.0,97343.0,1.97594953]
[1733067077604,0.67376719,97344.0,97343.0,1.93385753]
[1733067077848,0.67376719,97344.0,97343.0,1.89276553]
[1733067077849,0.69176719,97344.0,97343.0,1.89276553]
[1733067079020,0.37867667,97344.0,97343.0,1.79003553]
[1733067080337,0.37867667,97344.0,97343.0,1.74894353]
[1733067080784,0.58413267,97344.0,97343.0,1.70785153]
[1733067082145,0.69983267,97344.0,97343.0,1.68730553]
[1733067082375,0.69983267,97344.0,97343.0,1.66675953]
[1733067082829,0.69983267,97344.0,97343.0,1.62566753]
[1733067083081,0.69983267,97344.0,97343.0,1.56512153]
[1733067083294,0.69983267,97344.0,97343.0,1.54457553]
[1733067083508,0.69983267,97344.0,97343.0,1.45737953]
[1733067083784,0.69983267,97344.0,97343.0,1.43683353]
[1733067084722,0.70156007,97344.0,97343.0,1.39574153]
[1733067084964,0.80966007,97344.0,97343.0,1.37519553]
[1733067085207,0.80966007,97344.0,97343.0,1.35464953]
[1733067085661,0.80966007,97344.0,97343.0,3e-07]
[1733067092987,0.205478,97334.0,97333.0,4e-07]
[1733067093206,0.53054049,97334.0,97333.0,1.29214263]
[1733067093428,0.52872321,97334.0,97333.0,1.29214263]
[1733067093661,0.52872321,97334.0,97333.0,1.27159463]
[1733067093881,0.52872321,97334.0,97333.0,1.18940263]
[1733067094091,0.61276079,97334.0,97333.0,1.18940263]
[1733067094515,0.61976079,97334.0,97333.0,1.19040263]
[1733067094937,0.72786079,97334.0,97333.0,1.10821063]
[1733067095393,0.72786079,97334.0,97333.0,1.08866263]
[1733067095394,0.73686079,97334.0,97333.0,1.08866263]
[1733067095807,0.75752889,97334.0,97333.0,0.98592263]
[1733067096904,0.75752889,97334.0,97333.0,0.94569043]
[1733067097545,0.75752889,97334.0,97333.0,0.88404643]
[1733067097754,0.75752889,97334.0,97333.0,0.82240243]
[1733067098385,0.62589987,97334.0,97333.0,0.78130643]
[1733067098808,0.62589987,97334.0,97333.0,0.76075843]
[1733067099496,0.62589987,97334.0,97333.0,0.74021043]
[1733067099708,0.62589987,97334.0,97333.0,0.67856643]
[1733067100408,0.62589987,97334.0,97333.0,0.61692243]
[1733067100627,0.62589987,97334.0,97333.0,0.59637443]
[1733067100847,0.70903656,97334.0,97333.0,0.53473043]
[1733067102120,0.70903656,97334.0,97333.0,0.51418243]
[1733067102588,0.70903656,97334.0,97333.0,0.49363443]
[1733067102849,0.70903656,97334.0,97333.0,0.47308643]
[1733067104985,0.73869254,97334.0,97333.0,0.47308643]
[1733067105446,0.70903656,97334.0,97333.0,0.47308643]
[1733067105663,0.73869671,97334.0,97333.0,0.47308643]
[1733067105876,0.70903656,97334.0,97333.0,0.47308643]
[1733067106534,0.73870062,97334.0,97333.0,0.47308643]
[1733067107425,0.73870062,97334.0,97333.0,0.4517591]
[1733067109218,0.65556393,97334.0,97333.0,0.4517591]
[1733067114592,0.83987819,97334.0,97333.0,0.4517591]
[1733067114843,0.83987819,97334.0,97333.0,0.4971591]
[1733067114844,0.73177819,97334.0,97333.0,0.4971591]
[1733067115042,0.73177819,97334.0,97333.0,0.5778591]
[1733067115043,0.37446393,97334.0,97333.0,0.5778591]
[1733067118921,0.34479987,97334.0,97333.0,0.5778591]
[1733067119410,0.39982656,97334.0,97333.0,0.5778591]
[1733067120704,0.40155416,97334.0,97333.0,0.5778591]
[1733067121138,0.34652747,97334.0,97333.0,0.5778591]
[1733067123928,0.32585937,97334.0,97333.0,0.5778591]
[1733067131831,0.34885937,97334.0,97333.0,0.5778591]
[1733067132044,0.34885937,97334.0,97333.0,0.5324591]
[1733067132476,0.49885937,97334.0,97333.0,0.4517591]
[1733067132689,0.57134919,97334.0,97333.0,0.44830109]
[1733067133127,0.49885937,97334.0,97333.0,0.44830109]
[1733067137455,0.5285039,97334.0,97333.0,0.44830109]
[1733067138140,0.52850336,97334.0,97333.0,0.29649173]
[1733067138820,0.52850336,97334.0,97333.0,0.27594373]
[1733067139052,0.52150336,97334.0,97333.0,0.19275173]
[1733067139273,0.61533482,97334.0,97333.0,0.19175173]
[1733067139698,0.61533482,97334.0,97333.0,0.17120373]
[1733067139916,0.61533482,97334.0,97333.0,0.08901173]
[1733067140151,0.62433482,97334.0,97333.0,0.09001173]
[1733067140369,0.51250336,97334.0,97333.0,0.08901173]
[1733067140606,0.52150336,97334.0,97333.0,0.09101173]
[1733067140825,0.53050336,97334.0,97333.0,0.09101173]
[1733067141032,0.52150336,97334.0,97333.0,0.09001173]
[1733067141694,0.52950336,97334.0,97333.0,0.09001173]
[1733067142215,0.49985937,97334.0,97333.0,0.09001173]
[1733067145222,0.49985937,97334.0,97333.0,0.08995173]
[1733067149148,0.52951272,97334.0,97333.0,0.08995173]
[1733067150295,0.52951272,97334.0,97333.0,2.2e-07]
[1733067151009,0.205492,97327.0,97319.0,0.03825359]
[1733067151232,0.173,97326.0,97319.0,0.03726116]
[1733067151460,0.30835221,97320.0,97319.0,0.03726116]
[1733067151682,0.30835221,97320.0,97317.0,7.6e-07]
[1733067151683,0.205511,97318.0,97317.0,7.6e-07]
[1733067151922,0.48317349,97318.0,97317.0,7.6e-07]
[1733067152201,0.48135621,97318.0,97317.0,7.6e-07]
[1733067152433,0.48135621,97318.0,97317.0,6.024e-05]
[1733067152652,0.57059243,97318.0,97317.0,6.024e-05]
[1733067153356,0.60023812,97318.0,97317.0,2.4e-07]
[1733067153618,0.60023812,97318.0,97292.0,0.04445817]
[1733067153619,0.378535,97307.0,97306.0,8e-08]
[1733067153861,0.378535,97307.0,97302.0,4.8e-07]
[1733067153862,0.173,97304.0,97302.0,4.8e-07]
[1733067154084,0.205547,97301.0,97300.0,2.83833548]
[1733067154326,0.55438434,97301.0,97300.0,2.83833548]
[1733067154556,0.55256706,97301.0,97300.0,2.83833548]
[1733067155503,0.55656706,97301.0,97300.0,2.83833548]
[1733067156210,0.49439221,97301.0,97300.0,2.83833548]
[1733067157142,0.48539221,97301.0,97300.0,2.83833548]
[1733067157613,0.48139221,97301.0,97300.0,2.83833548]
[1733067157836,0.48839221,97301.0,97300.0,2.83833548]
[1733067158567,0.48139221,97301.0,97300.0,2.83833548]
[1733067158775,0.57963963,97301.0,97300.0,2.83833548]
[1733067158987,0.60029538,97301.0,97300.0,2.83833548]
[1733067159473,0.60729538,97301.0,97300.0,2.83833548]
[1733067160994,0.51804796,97301.0,97300.0,2.83833548]
[1733067162579,0.51804796,97301.0,97300.0,2.91923548]
[1733067164752,0.51804796,97301.0,97300.0,2.83833548]
[1733067166475,0.51804796,97301.0,97300.0,2.79876509]
[1733067168088,0.49739221,97301.0,97300.0,2.79962909]
[1733067168542,0.52977503,97301.0,97300.0,2.79962909]
[1733067170124,0.49739221,97301.0,97300.0,2.92652909]
[1733067171930,0.5180114,97301.0,97300.0,2.92652909]
[1733067174052,0.49739221,97301.0,97300.0,2.92652909]
[1733067176183,0.49739221,97301.0,97300.0,2.79962909]
[1733067176413,0.59798963,97301.0,97300.0,2.79962909]
[1733067177114,0.6208616,97301.0,97300.0,2.68689835]
[1733067177605,0.61866644,97301.0,97300.0,2.6707024]
[1733067177845,0.61866644,97301.0,97300.0,2.5679274]
[1733067178538,0.61166644,97301.0,97300.0,2.5465474]
[1733067178759,0.61166644,97301.0,97300.0,2.5054374]
[1733067178999,0.61166644,97301.0,97300.0,2.4848824]
[1733067179243,0.61166644,97301.0,97300.0,2.4437724]
[1733067179244,0.60266644,97301.0,97300.0,2.4437724]
[1733067179481,0.59098963,97301.0,97300.0,2.4437724]
[1733067179712,0.59098963,97301.0,97300.0,2.3821074]
[1733067179960,0.59098963,97301.0,97300.0,2.3409974]
[1733067180678,0.59098963,97301.0,97300.0,2.28769841]
[1733067180901,0.6340049,97301.0,97300.0,2.20547841]
[1733067181849,0.6340049,97301.0,97300.0,2.12325841]
[1733067182082,1.98192609,97301.0,97300.0,2.04601759]
[1733067182307,2.09832609,97301.0,97300.0,2.04601759]
[1733067182802,2.09832609,97301.0,97300.0,2.00490759]
[1733067183034,2.09860583,97301.0,97300.0,1.96379759]
[1733067183260,2.08960583,97301.0,97300.0,1.94324259]
[1733067183484,2.08060583,97301.0,97300.0,1.94324259]
[1733067183720,2.08960583,97301.0,97300.0,1.92268759]
[1733067183943,2.09860583,97301.0,97300.0,1.90213259]
[1733067184167,2.09860583,97301.0,97300.0,1.88157759]
[1733067184398,2.09860583,97301.0,97300.0,1.84046759]
[1733067185100,2.09562212,97301.0,97300.0,1.75824759]
[1733067185347,2.09562212,97301.0,97300.0,1.73769259]
[1733067185593,1.08616812,97301.0,97300.0,1.73769259]
[1733067185845,1.08616812,97301.0,97300.0,1.65547259]
[1733067186090,1.1169267,97301.0,97300.0,1.63491759]
[1733067186553,0.7380707,97301.0,97300.0,1.63491759]
[1733067187233,0.7380707,97301.0,97300.0,1.71401759]
[1733067188171,0.47812041,97301.0,97300.0,1.71401759]
[1733067189390,0.50112041,97301.0,97300.0,1.71401759]
[1733067191415,0.60209065,97301.0,97300.0,1.71401759]
[1733067191889,0.47812041,97301.0,97300.0,1.75941759]
[1733067192555,0.46912041,97301.0,97300.0,1.75941759]
[1733067192796,0.46012041,97301.0,97300.0,1.75941759]
[1733067193051,0.50112041,97301.0,97300.0,1.75941759]
[1733067196000,0.53076517,97301.0,97300.0,1.75941759]
[1733067196938,0.5305946,97301.0,97300.0,1.75941759]
[1733067200147,0.5305946,97301.0,97300.0,1.71401759]
[1733067201772,0.5305946,97301.0,97300.0,1.63491759]
[1733067205794,0.5305946,97301.0,97300.0,1.59380759]
[1733067206020,0.5305946,97301.0,97300.0,1.57325259]
[1733067206242,0.5305946,97301.0,97300.0,1.53214259]
[1733067206243,0.63342606,97301.0,97300.0,1.53214259]
[1733067206927,0.63342606,97301.0,97300.0,1.51158759]
[1733067206928,0.5305946,97301.0,97300.0,1.51158759]
[1733067208291,0.71502615,97301.0,97300.0,1.51158759]
[1733067209405,0.5305946,97301.0,97300.0,1.51158759]
[1733067209628,0.71502615,97301.0,97300.0,1.51158759]
[1733067209841,0.7323314,97301.0,97300.0,1.51158759]
[1733067210065,0.71502691,97301.0,97300.0,1.51158759]
[1733067211216,0.81252691,97301.0,97300.0,1.51158759]
[1733067212201,0.71502691,97301.0,97300.0,1.51158759]
[1733067212418,0.5305946,97301.0,97300.0,1.51158759]
[1733067212640,0.71502691,97301.0,97300.0,1.51158759]
[1733067212859,0.71502691,97301.0,97300.0,1.55938759]
[1733067213080,0.5305946,97301.0,97300.0,1.55938759]
[1733067213365,0.63342606,97301.0,97300.0,1.51158759]
[1733067213826,0.5305946,97301.0,97300.0,1.51158759]
[1733067214050,0.5305946,97301.0,97300.0,1.59028759]
[1733067214269,0.5305946,97301.0,97300.0,1.63808759]
[1733067214498,0.50094984,97301.0,97300.0,1.63808759]
[1733067216143,0.53058677,97301.0,97300.0,1.63808759]
[1733067216374,0.63341823,97301.0,97300.0,1.63808759]
[1733067217069,0.62808677,97301.0,97300.0,1.63808759]
[1733067221459,0.62808677,97301.0,97300.0,1.59028759]
[1733067223569,0.81242945,97301.0,97300.0,1.51158759]
[1733067224267,0.81241897,97301.0,97300.0,1.51158759]
[1733067225220,0.81241897,97301.0,97300.0,1.40881259]
[1733067225221,1.47943777,97301.0,97300.0,1.40881259]
[1733067225440,2.55335523,97301.0,97300.0,1.40881259]
[1733067225685,2.55335523,97301.0,97300.0,1.38825759]
[1733067225686,3.02467523,97301.0,97300.0,1.38825759]
[1733067225878,2.61567223,97301.0,97300.0,1.30603759]
[1733067226125,2.60667223,97301.0,97300.0,1.30603759]
[1733067226377,2.59767223,97301.0,97300.0,1.30603759]
[1733067226600,2.60667223,97301.0,97300.0,1.30603759]
[1733067226819,2.61567223,97301.0,97300.0,1.20326259]
[1733067227046,2.60667223,97301.0,97300.0,1.20326259]
[1733067227271,2.59767223,97301.0,97300.0,1.20326259]
[1733067228014,2.25934077,97301.0,97300.0,1.10048759]
[1733067228481,2.26834077,97301.0,97300.0,1.10048759]
[1733067228725,2.25934077,97301.0,97300.0,1.07993259]
[1733067228948,1.33482477,97301.0,97300.0,1.07993259]
[1733067229168,1.34382477,97301.0,97300.0,1.03882259]
[1733067229608,1.33482477,97301.0,97300.0,0.99771259]
[1733067229825,1.34382477,97301.0,97300.0,0.97715759]
[1733067230045,1.33482477,97301.0,97300.0,0.93604759]
[1733067230234,1.55619196,97301.0,97300.0,0.89493759]
[1733067230486,1.46313996,97301.0,97300.0,0.89493759]
[1733067230703,1.47213996,97301.0,97300.0,0.89493759]
[1733067231170,1.44351996,97301.0,97300.0,0.85382759]
[1733067231630,1.34564242,97301.0,97300.0,0.79216259]
[1733067231857,1.34564242,97301.0,97300.0,0.73049759]
[1733067232085,1.24281096,97301.0,97300.0,0.70994259]
[1733067232309,1.24281096,97301.0,97300.0,0.68938759]
[1733067232310,1.06955596,97301.0,97300.0,0.68938759]
[1733067232582,1.06656196,97301.0,97300.0,0.68938759]
[1733067232811,1.00736896,97301.0,97300.0,0.68938759]
[1733067233023,0.97497996,97301.0,97300.0,0.68938759]
[1733067233268,0.84744423,97301.0,97300.0,0.68938759]
[1733067233504,0.71799877,97301.0,97300.0,0.68938759]
[1733067233949,0.67408977,97301.0,97300.0,0.68938759]
[1733067234658,0.67348977,97301.0,97300.0,0.68938759]
[1733067235816,0.52998677,97301.0,97300.0,0.68938759]
[1733067236277,1.11145538,97301.0,97300.0,0.68938759]
[1733067236946,1.07586438,97301.0,97300.0,0.68938759]
[1733067237413,0.70131438,97301.0,97300.0,0.68938759]
[1733067238134,0.93188808,97301.0,97300.0,0.68938759]
[1733067238356,0.85806047,97301.0,97300.0,0.68938759]
[1733067239281,0.60448677,97301.0,97300.0,0.73598759]
[1733067240898,0.62748677,97301.0,97300.0,0.73598759]
[1733067241588,0.85806047,97301.0,97300.0,0.73598759]
[1733067241812,0.62748677,97301.0,97300.0,0.73598759]
[1733067242998,0.73031823,97301.0,97300.0,0.68938759]
[1733067247307,0.73031823,97301.0,97300.0,0.64827759]
[1733067247531,0.73031823,97301.0,97300.0,0.62772259]
[1733067247796,0.73031823,97301.0,97300.0,0.58661259]
[1733067249444,0.62748677,97301.0,97300.0,0.66261259]
[1733067255077,0.85812151,97301.0,97300.0,0.66261259]